lending/lending_fUSD_20250210
["ID","MTS","AMOUNT","RATE_DAILY","PERIOD"]
[352663949,1739221842364,-500.0,0.00010958,2]
[352663951,1739221842374,-500.0,0.00010958,2]
[352663953,1739221842383,-1271.58,0.00010958,2]
[352663955,1739221842392,-1318.11,0.00010958,2]
[352663957,1739221842402,-500.0,0.00010958,2]
[352663960,1739221842411,-500.0,0.00010958,2]
[352663961,1739221842422,-500.0,0.00010958,2]
[352663964,1739221842432,-500.0,0.00010958,2]
[352663966,1739221842442,-416.87663856,0.00010958,2]
[352663968,1739221842451,-2794.24,0.00010958,2]
[352663969,1739221842461,-1048.08,0.00010958,2]
[352663972,1739221842471,-1778.22,0.00010958,2]
[352663974,1739221842480,-653.51,0.00010958,2]
[352663976,1739221842490,-520.46,0.00010958,2]
[352663978,1739221842500,-1343.84,0.00010958,2]
[352663980,1739221842509,-1351.09,0.00010958,2]
[352663982,1739221842518,-813.67,0.00010958,2]
[352663983,1739221842527,-502.22115506,0.00010958,2]
[352663985,1739221842537,-872.93,0.00010958,2]
[352663987,1739221842547,-517.6,0.00010958,2]
[352663989,1739221842556,-500.0,0.00010958,2]
[352663991,1739221842566,-524.05,0.00010958,2]
[352663995,1739221842575,-4461.74,0.00010958,2]
[352663998,1739221842585,-500.0,0.00010958,2]
[352664000,1739221842595,-1209.75,0.00010958,2]
[352664002,1739221842604,-503.24523693,0.00010958,2]
[352664004,1739221842614,-972.94,0.00010958,2]
[352664006,1739221842623,-500.0,0.00010958,2]
[352664008,1739221842633,-500.0,0.00010958,2]
[352664010,1739221842643,-779.32,0.00010958,2]
[352664012,1739221842653,-500.0,0.00010958,2]
[352664014,1739221842663,-496.83707001,0.00010958,2]
[352664017,1739221842673,-913.45,0.00010958,2]
[352664018,1739221842683,-500.0,0.00010958,2]
[352664021,1739221842693,-6142.28,0.00010958,2]
[352664023,1739221842702,-500.0,0.00010958,2]
[352664024,1739221842712,-1071.87,0.00010958,2]
[352664026,1739221842721,-503.17775673,0.00010958,2]
[352664028,1739221842731,-2885.64,0.00010958,2]
[352664030,1739221842741,-834.53,0.00010958,2]
[352664032,1739221842751,-500.0,0.00010958,2]
[352664034,1739221842761,-220.79319003,0.00010958,2]
[352664036,1739221842770,-3113.6,0.00010958,2]
[352664038,1739221842780,-500.0,0.00010958,2]
[352664040,1739221842791,-1067.61,0.00010958,2]
[352664042,1739221842800,-501.70569195,0.00010958,2]
[352664044,1739221842810,-500.0,0.00010958,2]
[352664046,1739221842820,-500.0,0.00010958,2]
[352664048,1739221842830,-500.0,0.00010958,2]
[352664050,1739221842839,-643.54232837,0.00010958,2]
[352664052,1739221842849,-500.0,0.00010958,2]
[352664054,1739221842859,-500.0,0.00010958,2]
[352664056,1739221842869,-1318.16,0.00010958,2]
[352664058,1739221842879,-1134.84,0.00010958,2]
[352664060,1739221842889,-1619.9,0.00010958,2]
[352664062,1739221842898,-500.0,0.00010958,2]
[352664064,1739221842908,-500.0,0.00010958,2]
[352664066,1739221842917,-713.8,0.00010958,2]
[352664068,1739221842927,-500.0,0.00010958,2]
[352664070,1739221842937,-500.0,0.00010958,2]
[352664072,1739221842947,-500.0,0.00010958,2]
[352664074,1739221842957,-807.25,0.00010958,2]
[352664076,1739221842967,-191.63286282,0.00010958,2]
[352664111,1739221843282,-294.54392049,0.00010958,2]
[352664113,1739221843294,-14.73782588,0.00010958,2]
[352664115,1739221843303,-631.73,0.00010958,2]
[352664117,1739221843313,-2122.23,0.00010958,2]
[352664119,1739221843324,-504.87695081,0.00010958,2]
[352664121,1739221843333,-688.24,0.00010958,2]
[352664123,1739221843343,-500.0,0.00010958,2]
[352664125,1739221843352,-500.0,0.00010958,2]
[352664127,1739221843362,-938.53,0.00010958,2]
[352664129,1739221843374,-1110.93,0.00010958,2]
[352664131,1739221843383,-500.0,0.00010958,2]
[352664133,1739221843392,-1113.86,0.00010958,2]
[352664135,1739221843402,-2901.08,0.00010958,2]
[352664137,1739221843411,-500.0,0.00010958,2]
[352664139,1739221843420,-500.0,0.00010958,2]
[352664141,1739221843430,-266.43992646,0.00010958,2]
[352664143,1739221843439,-1270.68,0.00010958,2]
[352664145,1739221843449,-4000.0,0.00010958,2]
[352664147,1739221843458,-1587.09,0.00010958,2]
[352664149,1739221843467,-1780.39,0.00010958,2]
[352664151,1739221843477,-500.0,0.00010958,2]
[352664153,1739221843487,-745.48,0.00010958,2]
[352664155,1739221843496,-627.79,0.00010958,2]
[352664157,1739221843505,-913.98,0.00010958,2]
[352664159,1739221843514,-500.0,0.00010958,2]
[352664161,1739221843524,-501.97319758,0.00010958,2]
[352664163,1739221843533,-500.0,0.00010958,2]
[352664165,1739221843542,-1079.48,0.00010958,2]
[352664167,1739221843551,-1098.75,0.00010958,2]
[352664169,1739221843560,-500.0,0.00010958,2]
[352664171,1739221843570,-2436.72,0.00010958,2]
[352664173,1739221843579,-502.35741859,0.00010958,2]
[352664174,1739221843588,-1923.16,0.00010958,2]
[352664176,1739221843597,-501.33122381,0.00010958,2]
[352664178,1739221843606,-500.0,0.00010958,2]
[352664180,1739221843616,-500.0,0.00010958,2]
[352664183,1739221843626,-1263.62,0.00010958,2]
[352664184,1739221843636,-1608.98,0.00010958,2]
[352664187,1739221843645,-501.21852645,0.00010958,2]
[352664188,1739221843655,-500.0,0.00010958,2]
[352664190,1739221843664,-506.25685506,0.00010958,2]
[352664192,1739221843674,-1737.25,0.00010958,2]
[352664194,1739221843683,-601.11,0.00010958,2]
[352664196,1739221843692,-1653.81,0.00010958,2]
[352664198,1739221843702,-1967.31,0.00010958,2]
[352664200,1739221843711,-713.24,0.00010958,2]
[352664202,1739221843720,-97.45413815,0.00010958,2]
[352664206,1739221843747,-402.54586185,0.00010958,2]
[352664208,1739221843756,-503.66845745,0.00010958,2]
[352664210,1739221843765,-1068.1866007,0.00010958,2]
[352664234,1739221843990,-119.0933993,0.00010958,2]
[352664236,1739221844000,-158.00391499,0.00010958,2]
[352664239,1739221844011,-343.32518605,0.00010958,2]
[352664241,1739221844020,-1735.26,0.00010958,2]
[352664242,1739221844030,-500.0,0.00010958,2]
[352664244,1739221844043,-550.66,0.00010958,2]
[352664245,1739221844051,-36.05481395,0.00010958,2]
[352664246,1739221844090,-463.94518605,0.00010958,2]
[352664247,1739221844100,-502.33675755,0.00010958,2]
[352664248,1739221844113,-610.06,0.00010958,2]
[352664249,1739221844123,-134.6004924,0.00010958,2]
[352664250,1739221844133,-367.04938834,0.00010958,2]
[352664252,1739221844142,-769.18898006,0.00010958,2]
[352664256,1739221844173,-261.39496316,0.00010958,2]
[352664258,1739221844184,-831.09605678,0.00010958,2]
[352664260,1739221844194,-1255.2502613,0.00010958,2]
[352664270,1739221844285,-346.02250741,0.00010958,2]
[352664272,1739221844297,-177.59723129,0.00010958,2]
[352664274,1739221844306,-322.40276871,0.00010958,2]
[352664276,1739221844317,-177.59723129,0.00010958,2]
[352664278,1739221844327,-1139.14,0.00010958,2]
[352664280,1739221844336,-537.65957267,0.00010958,2]
[352664282,1739221844345,-717.9,0.00010958,2]
[352664284,1739221844355,-2240.51986828,0.00010958,2]
[352664286,1739221844367,-3323.15013172,0.00010958,2]
[352664288,1739221844378,-445.84986828,0.00010958,2]
[352664291,1739221844396,-1413.66013172,0.00010958,2]
[352664293,1739221844405,-600.16,0.00010958,2]
[352664295,1739221844414,-348.43860177,0.00010958,2]
[352664302,1739221844479,-150.3617214,0.00010958,2]
[352664305,1739221844489,-1224.92,0.00010958,2]
[352664307,1739221844500,-500.0,0.00010958,2]
[352664309,1739221844509,-850.26,0.00010958,2]
[352664310,1739221844519,-1251.91,0.00010958,2]
[352664312,1739221844528,-2340.12,0.00010958,2]
[352664314,1739221844538,-500.0,0.00010958,2]
[352664316,1739221844547,-1034.12,0.00010958,2]
[352664318,1739221844557,-500.51773299,0.00010958,2]
[352664320,1739221844567,-308.59320485,0.00010958,2]
[352664322,1739221844576,-1438.3,0.00010958,2]
[352664324,1739221844585,-500.0,0.00010958,2]
[352664326,1739221844595,-6661.72,0.00010958,2]
[352664328,1739221844604,-1326.21,0.00010958,2]
[352664330,1739221844614,-2129.87,0.00010958,2]
[352664332,1739221844623,-500.0,0.00010958,2]
[352664334,1739221844633,-1217.88,0.00010958,2]
[352664336,1739221844642,-656.1,0.00010958,2]
[352664338,1739221844651,-500.0,0.00010958,2]
[352664340,1739221844660,-1276.31,0.00010958,2]
[352664342,1739221844669,-500.0,0.00010958,2]
[352664344,1739221844678,-1519.5,0.00010958,2]
[352664346,1739221844687,-974.02781333,0.00010958,2]
[352664349,1739221844711,-426.16332782,0.00010958,2]
[352664351,1739221844722,-449.54333001,0.00010958,2]
[352664379,1739221844977,-479.81552884,0.00010958,2]
[352664381,1739221844987,-500.0,0.00010958,2]
[352664383,1739221844996,-500.0,0.00010958,2]
[352664385,1739221845006,-584.59,0.00010958,2]
[352664387,1739221845015,-282.17054016,0.00010958,2]
[352664389,1739221845027,-217.82945984,0.00010958,2]
[352664391,1739221845040,-269.7461464,0.00010958,2]
[352664393,1739221845051,-424.92458069,0.00010958,2]
[352664396,1739221845069,-1083.32612871,0.00010958,2]
[352664398,1739221845083,-79.8631442,0.00010958,2]
[352664400,1739221845092,-568.74,0.00010958,2]
[352664402,1739221845101,-523.80743827,0.00010958,2]
[352664405,1739221845121,-469.02256173,0.00010958,2]
[352664407,1739221845131,-581.26380123,0.00010958,2]
[352664409,1739221845143,-1558.47635667,0.00010958,2]
[352664411,1739221845154,-697.3998421,0.00010958,2]
[352664413,1739221845164,-1023.13,0.00010958,2]
[352664415,1739221845173,-591.9656581,0.00010958,2]
[352664417,1739221845184,-1960.6643419,0.00010958,2]
[352664419,1739221845193,-550.6,0.00010958,2]
[352664421,1739221845204,-500.0,0.00010958,2]
[352664423,1739221845214,-461.25599838,0.00010958,2]
[352664426,1739221845233,-38.74400162,0.00010958,2]
[352664428,1739221845242,-1074.92,0.00010958,2]
[352664430,1739221845252,-1546.05,0.00010958,2]
[352664432,1739221845262,-1028.26,0.00010958,2]
[352664434,1739221845272,-1428.67,0.00010958,2]
[352664436,1739221845281,-3768.62,0.00010958,2]
[352664463,1739221845523,-2035.6,0.00010958,2]
[352664465,1739221845533,-749.75,0.00010958,2]
[352664467,1739221845544,-1811.79,0.00010958,2]
[352664469,1739221845553,-500.0,0.00010958,2]
[352664471,1739221845563,-500.0,0.00010958,2]
[352664473,1739221845572,-1027.48,0.00010958,2]
[352664475,1739221845582,-1426.95,0.00010958,2]
[352664477,1739221845591,-3031.41,0.00010958,2]
[352664479,1739221845601,-895.08,0.00010958,2]
[352664481,1739221845610,-500.0,0.00010958,2]
[352664483,1739221845620,-500.0,0.00010958,2]
[352664485,1739221845630,-1244.83,0.00010958,2]
[352664487,1739221845639,-500.0,0.00010958,2]
[352664489,1739221845648,-987.29,0.00010958,2]
[352664491,1739221845658,-755.73,0.00010958,2]
[352664493,1739221845667,-500.0,0.00010958,2]
[352664495,1739221845676,-500.0,0.00010958,2]
[352664497,1739221845686,-1367.82,0.00010958,2]
[352664499,1739221845695,-500.0,0.00010958,2]
[352664501,1739221845705,-735.23,0.00010958,2]
[352664503,1739221845714,-500.0,0.00010958,2]
[352664505,1739221845723,-500.0,0.00010958,2]
[352664507,1739221845732,-2133.08,0.00010958,2]
[352664509,1739221845742,-2434.44,0.00010958,2]
[352664511,1739221845751,-754.99,0.00010958,2]
[352664513,1739221845760,-839.03,0.00010958,2]
[352664515,1739221845771,-500.0,0.00010958,2]
[352664517,1739221845780,-500.0,0.00010958,2]
[352664519,1739221845790,-721.28,0.00010958,2]
[352664521,1739221845801,-1710.45,0.00010958,2]
[352664523,1739221845810,-500.0,0.00010958,2]
[352664525,1739221845819,-1101.64,0.00010958,2]
[352664527,1739221845829,-500.0,0.00010958,2]
[352664529,1739221845839,-500.0,0.00010958,2]
[352664531,1739221845848,-2226.19,0.00010958,2]
[352664532,1739221845857,-611.31,0.00010958,2]
[352664534,1739221845867,-1302.67,0.00010958,2]
[352664537,1739221845877,-2398.61,0.00010958,2]
[352664538,1739221845886,-1465.71,0.00010958,2]
[352664540,1739221845895,-2090.19,0.00010958,2]
[352664543,1739221845906,-822.28,0.00010958,2]
[352664545,1739221845915,-743.26,0.00010958,2]
[352664547,1739221845924,-1360.05,0.00010958,2]
[352664548,1739221845934,-3640.25,0.00010958,2]
[352664551,1739221845943,-635.51,0.00010958,2]
[352664553,1739221845953,-777.93,0.00010958,2]
[352664554,1739221845963,-1771.14,0.00010958,2]
[352664556,1739221845972,-1359.38,0.00010958,2]
[352664558,1739221845982,-734.91,0.00010958,2]
[352664560,1739221845991,-710.09,0.00010958,2]
[352664562,1739221846001,-1468.97,0.00010958,2]
[352664564,1739221846010,-1527.21,0.00010958,2]
[352664566,1739221846021,-1606.71,0.00010958,2]
[352664568,1739221846031,-150.0,0.00010959,2]
[352664570,1739221846045,-153.38769044,0.00010993,2]
[352664572,1739221846054,-1788.73564484,0.00010993,2]
[352664574,1739221846064,-167.39541187,0.00010994,2]
[352664576,1739221846075,-170.37,0.00011006,2]
[352664578,1739221846085,-2039.3377632,0.00011007,2]
[352664580,1739221846095,-500.0,0.0001107,2]
[352664582,1739221846106,-150.0,0.0001107,2]
[352664585,1739221846118,-231.0,0.0001107,2]
[352664589,1739221846128,-169.0,0.0001107,2]
[352664593,1739221846137,-161.507,0.0001107,2]
[352664596,1739221846147,-200.0,0.0001107,2]
[352664598,1739221846156,-150.0,0.0001107,2]
[352664601,1739221846166,-2673.28263826,0.00011073,2]
[352664605,1739221846179,-4413.63513586,0.00011073,2]
[352664607,1739221846188,-519.89333523,0.00011092,3]
[352664667,1739221846750,-11239.1716,0.00011092,3]
[352664671,1739221846774,-19203.51520002,0.00011092,3]
[352665053,1739222061619,1910.6092,8.836e-05,2]
[352665054,1739222077300,1417.047,8.836e-05,2]
[352665055,1739222105044,151.0,0.0002,120]
[352665056,1739222135286,-300.0,8.972e-05,2]
[352665057,1739222135314,-430.5761,8.973e-05,2]
[352665058,1739222135341,-9969.4239,8.973e-05,2]
[352665059,1739222197230,1120.91,8.219e-05,2]
[352666216,1739223031814,-30.5761,8.973e-05,2]
[352666217,1739223031823,-150.0,8.986e-05,2]
[352666219,1739223031833,-460.15658982,9e-05,2]
[352666220,1739223031875,-1880.79730344,9e-05,2]
[352666221,1739223031887,-161.7403131,9e-05,2]
[352666222,1739223031896,-150.0,9.343e-05,2]
[352666223,1739223031905,-150.0,9.87e-05,2]
[352666224,1739223031915,-3272.44186657,9.956e-05,2]
[352666225,1739223031924,-248.8596869,9.956e-05,2]
[352666226,1739223031952,-751.1403131,9.956e-05,2]
[352666227,1739223031961,-150.0,9.999e-05,2]
[352666228,1739223031970,-469.20968686,0.0001,2]
[352666229,1739223032001,-14659.24358052,0.0001,2]
[352666230,1739223032013,-19600.0,0.0001,2]
[352666231,1739223032024,-148898.29347776,0.0001,2]
[352666232,1739223032119,-275.83066418,0.0001,2]
[352666233,1739223032186,-961.67907138,0.0001,2]
[352666297,1739223037734,-4037.57747779,0.0001,2]
[352666298,1739223037746,-471.10811396,0.0001,2]
[352666299,1739223037802,-27886.05,0.0001,2]
[352666300,1739223037860,-308.91828684,0.0001,2]
[352666301,1739223037871,-1972.34,0.0001,2]
[352666302,1739223037922,-1043.71450675,0.0001,2]
[352666477,1739223039791,-321.72721083,0.0001,2]
[352666484,1739223039856,-799.4,0.0001,2]
[352666487,1739223039868,-984.34476,0.0001,2]
[352666493,1739223039923,-3003.0,0.0001,2]
[352666496,1739223039934,-2400.47475159,0.0001,2]
[352666498,1739223039946,-1353.8216,0.0001,2]
[352666500,1739223039957,-26054.99607727,0.0001,2]
[352666507,1739223040014,-1637.29710056,0.0001,2]
[352666509,1739223040026,-1091356.6850334,0.0001,2]
[352666511,1739223040036,-336947.3248203,0.0001,2]
[352666513,1739223040045,-153.38769044,0.0001,2]
[352666515,1739223040055,-318.5192087,0.0001,2]
[352666517,1739223040064,-250.0,0.00010003,2]
[352666518,1739223040073,-252.52,0.00010041,2]
[352666520,1739223040083,-290.66,0.00010137,2]
[352666522,1739223040092,-1199.58601519,0.00010262,2]
[352666524,1739223040102,-205.28,0.00010382,2]
[352666526,1739223040112,-170.37,0.00010439,2]
[352666527,1739223040121,-1120.91,0.00010482,2]
[352666529,1739223040131,-1000.0,0.000105,3]
[352666532,1739223040144,-1000.0,0.000105,3]
[352666534,1739223040153,-958.76325774,0.00010623,2]
[352666535,1739223040163,-838.0,0.000108,2]
[352666537,1739223040172,-1059.0,0.00010802,2]
[352666539,1739223040182,-2000.0,0.000109,2]
[352666541,1739223040191,-21345.95849095,0.00010957,2]
[352666543,1739223040201,-500.0,0.00010958,2]
[352666545,1739223040210,-500.0,0.00010958,2]
[352666547,1739223040219,-500.0,0.00010958,2]
[352666549,1739223040229,-500.0,0.00010958,2]
[352666551,1739223040238,-500.0,0.00010958,2]
[352666553,1739223040247,-500.0,0.00010958,2]
[352666555,1739223040257,-500.0,0.00010958,2]
[352666557,1739223040266,-500.0,0.00010958,2]
[352666559,1739223040276,-533.89,0.00010958,2]
[352666561,1739223040285,-500.0,0.00010958,2]
[352666563,1739223040295,-771.35,0.00010958,2]
[352666565,1739223040304,-500.0,0.00010958,2]
[352666566,1739223040313,-580.59,0.00010958,2]
[352666568,1739223040323,-500.0,0.00010958,2]
[352666570,1739223040332,-500.0,0.00010958,2]
[352666572,1739223040342,-500.0,0.00010958,2]
[352666574,1739223040351,-500.0,0.00010958,2]
[352666576,1739223040360,-501.11,0.00010958,2]
[352666578,1739223040370,-503.45778951,0.00010958,2]
[352666580,1739223040380,-500.0,0.00010958,2]
[352666582,1739223040391,-537.97,0.00010958,2]
[352666584,1739223040401,-500.0,0.00010958,2]
[352666586,1739223040410,-500.0,0.00010958,2]
[352666588,1739223040419,-500.0,0.00010958,2]
[352666590,1739223040432,-500.0,0.00010958,2]
[352666592,1739223040441,-500.0,0.00010958,2]
[352666594,1739223040450,-500.0,0.00010958,2]
[352666596,1739223040459,-500.0,0.00010958,2]
[352666598,1739223040471,-500.0,0.00010958,2]
[352666600,1739223040481,-1730.574,0.00010958,2]
[352666602,1739223040490,-500.0,0.00010958,2]
[352666604,1739223040500,-500.0,0.00010958,2]
[352666606,1739223040512,-500.0,0.00010958,2]
[352666608,1739223040522,-500.0,0.00010958,2]
[352666610,1739223040531,-621.32,0.00010958,2]
[352666612,1739223040541,-1275.47,0.00010958,2]
[352666614,1739223040550,-500.0,0.00010958,2]
[352666616,1739223040559,-500.0,0.00010958,2]
[352666618,1739223040569,-710.96,0.00010958,2]
[352666619,1739223040578,-500.0,0.00010958,2]
[352666621,1739223040587,-500.0,0.00010958,2]
[352666623,1739223040596,-847.04,0.00010958,2]
[352666624,1739223040605,-500.0,0.00010958,2]
[352666625,1739223040614,-1149.22,0.00010958,2]
[352666626,1739223040624,-500.0,0.00010958,2]
[352666627,1739223040633,-500.0,0.00010958,2]
[352666628,1739223040644,-500.0,0.00010958,2]
[352666629,1739223040653,-500.0,0.00010958,2]
[352666630,1739223040662,-500.0,0.00010958,2]
[352666631,1739223040671,-766.45,0.00010958,2]
[352666632,1739223040680,-654.46,0.00010958,2]
[352666633,1739223040690,-562.39,0.00010958,2]
[352666634,1739223040700,-578.92,0.00010958,2]
[352666636,1739223040709,-500.0,0.00010958,2]
[352666638,1739223040719,-1026.41,0.00010958,2]
[352666640,1739223040727,-1067.65,0.00010958,2]
[352666642,1739223040737,-500.0,0.00010958,2]
[352666644,1739223040746,-500.0,0.00010958,2]
[352666646,1739223040755,-591.84,0.00010958,2]
[352666648,1739223040763,-500.0,0.00010958,2]
[352666650,1739223040773,-500.0,0.00010958,2]
[352666652,1739223040782,-500.0,0.00010958,2]
[352666654,1739223040791,-712.14,0.00010958,2]
[352666656,1739223040800,-500.0,0.00010958,2]
[352666658,1739223040809,-500.0,0.00010958,2]
[352666660,1739223040820,-500.0,0.00010958,2]
[352666662,1739223040829,-694.23,0.00010958,2]
[352666664,1739223040838,-500.0,0.00010958,2]
[352666666,1739223040847,-976.59,0.00010958,2]
[352666668,1739223040857,-500.0,0.00010958,2]
[352666670,1739223040867,-548.16,0.00010958,2]
[352666672,1739223040876,-632.93,0.00010958,2]
[352666674,1739223040886,-723.41,0.00010958,2]
[352666676,1739223040895,-731.07,0.00010958,2]
[352666678,1739223040904,-857.7,0.00010958,2]
[352666680,1739223040913,-500.0,0.00010958,2]
[352666682,1739223040922,-987.98,0.00010958,2]
[352666683,1739223040932,-930.11,0.00010958,2]
[352666686,1739223040941,-562.96,0.00010958,2]
[352666688,1739223040952,-505.72,0.00010958,2]
[352666690,1739223040961,-500.0,0.00010958,2]
[352666691,1739223040970,-500.0,0.00010958,2]
[352666693,1739223040980,-500.0,0.00010958,2]
[352666695,1739223040989,-500.0,0.00010958,2]
[352666697,1739223040999,-815.72,0.00010958,2]
[352666699,1739223041008,-966.75,0.00010958,2]
[352666701,1739223041017,-500.0,0.00010958,2]
[352666703,1739223041026,-654.68,0.00010958,2]
[352666705,1739223041036,-715.54,0.00010958,2]
[352666707,1739223041046,-619.26304612,0.00010958,2]
[352666709,1739223041055,-155.843582,0.00010958,2]
[352666711,1739223041065,-500.0,0.00010958,2]
[352666713,1739223041074,-500.0,0.00010958,2]
[352666715,1739223041084,-667.78,0.00010958,2]
[352666717,1739223041093,-509.97137665,0.00010958,2]
[352666719,1739223041102,-764.57,0.00010958,2]
[352666721,1739223041112,-994.77,0.00010958,2]
[352666723,1739223041121,-501.46877145,0.00010958,2]
[352666725,1739223041130,-966.84,0.00010958,2]
[352666727,1739223041142,-500.0,0.00010958,2]
[352666729,1739223041151,-500.52825834,0.00010958,2]
[352666731,1739223041161,-500.0,0.00010958,2]
[352666733,1739223041171,-500.0,0.00010958,2]
[352666735,1739223041180,-500.0,0.00010958,2]
[352666737,1739223041190,-893.02,0.00010958,2]
[352666739,1739223041199,-500.87220714,0.00010958,2]
[352666741,1739223041213,-500.0,0.00010958,2]
[352666743,1739223041223,-500.0,0.00010958,2]
[352666745,1739223041232,-500.0,0.00010958,2]
[352666747,1739223041241,-897.65,0.00010958,2]
[352666749,1739223041250,-500.0,0.00010958,2]
[352666751,1739223041260,-500.56396794,0.00010958,2]
[352666753,1739223041271,-783.253371,0.00010958,2]
[352666755,1739223041281,-501.25284158,0.00010958,2]
[352666757,1739223041290,-764.03,0.00010958,2]
[352666759,1739223041300,-500.0,0.00010958,2]
[352666761,1739223041310,-626.63,0.00010958,2]
[352666763,1739223041320,-549.56,0.00010958,2]
[352666765,1739223041329,-876.94,0.00010958,2]
[352666767,1739223041338,-795.622801,0.00010958,2]
[352666769,1739223041348,-437.10188684,0.00010958,2]
[352666771,1739223041357,-734.53,0.00010958,2]
[352666773,1739223041366,-500.0,0.00010958,2]
[352666775,1739223041376,-500.0,0.00010958,2]
[352666777,1739223041388,-836.91,0.00010958,2]
[352666779,1739223041397,-973.12,0.00010958,2]
[352666781,1739223041406,-1305.72,0.00010958,2]
[352666783,1739223041416,-500.0,0.00010958,2]
[352666785,1739223041425,-500.0,0.00010958,2]
[352666787,1739223041439,-1052.52,0.00010958,2]
[352666789,1739223041448,-500.0,0.00010958,2]
[352666791,1739223041459,-500.0,0.00010958,2]
[352666793,1739223041470,-788.95,0.00010958,2]
[352666795,1739223041479,-500.0,0.00010958,2]
[352666797,1739223041488,-500.0,0.00010958,2]
[352666799,1739223041498,-555.44,0.00010958,2]
[352666801,1739223041509,-500.0,0.00010958,2]
[352666803,1739223041519,-500.0,0.00010958,2]
[352666805,1739223041529,-652.37,0.00010958,2]
[352666807,1739223041538,-533.01411988,0.00010958,2]
[352666809,1739223041547,-631.35,0.00010958,2]
[352666811,1739223041557,-599.63,0.00010958,2]
[352666813,1739223041566,-673.04,0.00010958,2]
[352666815,1739223041575,-583.08,0.00010958,2]
[352666817,1739223041585,-500.0,0.00010958,2]
[352666819,1739223041594,-500.0,0.00010958,2]
[352666821,1739223041604,-623.4,0.00010958,2]
[352666823,1739223041613,-500.0,0.00010958,2]
[352666825,1739223041623,-720.38,0.00010958,2]
[352666827,1739223041632,-500.0,0.00010958,2]
[352666829,1739223041643,-500.0,0.00010958,2]
[352666831,1739223041652,-1013.69,0.00010958,2]
[352666833,1739223041661,-608.35,0.00010958,2]
[352666835,1739223041671,-1139.54,0.00010958,2]
[352666837,1739223041680,-569.63,0.00010958,2]
[352666839,1739223041688,-585.97,0.00010958,2]
[352666841,1739223041698,-740.91,0.00010958,2]
[352666843,1739223041707,-664.75,0.00010958,2]
[352666845,1739223041716,-972.16,0.00010958,2]
[352666847,1739223041724,-1065.4,0.00010958,2]
[352666849,1739223041734,-500.0,0.00010958,2]
[352666851,1739223041743,-863.01,0.00010958,2]
[352666853,1739223041752,-717.82,0.00010958,2]
[352666855,1739223041761,-500.0,0.00010958,2]
[352666856,1739223041771,-1087.43,0.00010958,2]
[352666859,1739223041780,-973.87,0.00010958,2]
[352666861,1739223041789,-743.82,0.00010958,2]
[352666863,1739223041798,-887.42,0.00010958,2]
[352666864,1739223041807,-500.0,0.00010958,2]
[352666867,1739223041816,-500.0,0.00010958,2]
[352666868,1739223041825,-905.97,0.00010958,2]
[352666870,1739223041834,-500.0,0.00010958,2]
[352666872,1739223041844,-527.45,0.00010958,2]
[352666874,1739223041854,-1037.21,0.00010958,2]
[352666876,1739223041864,-597.08,0.00010958,2]
[352666878,1739223041874,-500.0,0.00010958,2]
[352666880,1739223041883,-500.0,0.00010958,2]
[352666882,1739223041894,-620.66,0.00010958,2]